bitfinex-derivatives/quotes_BTCF0:USTF0_20210102
["timestamp","ask_amount","ask_price","bid_price","bid_amount"]
[1609558779217,5.77175702,29301.0,29299.0,0.000361]
[1609558779619,5.77175702,29301.0,29300.0,0.000361]
[1609558780017,5.77175702,29301.0,29299.0,0.00036103]
[1609558780319,5.77175702,29301.0,29300.0,0.00036105]
[1609558780818,5.77175702,29301.0,29296.0,0.03720488]
[1609558781019,5.77175702,29301.0,29300.0,0.00036105]
[1609558781421,5.77175702,29301.0,29296.0,0.03720488]
[1609558781619,0.18043158,29297.0,29295.0,0.03684315]
[1609558781818,0.30913158,29297.0,29294.0,5.3659]
[1609558782218,0.30913158,29297.0,29295.0,0.03720418]
[1609558784524,0.1011,29296.0,29295.0,0.03720418]
[1609558784823,0.30913158,29297.0,29295.0,0.03720418]
[1609558786023,0.6166,29296.0,29295.0,0.03720418]
[1609558786625,0.6166,29296.0,29295.0,0.03684313]
[1609558786828,0.6166,29296.0,29295.0,0.00036103]
[1609558787126,0.6166,29296.0,29295.0,0.03756125]
[1609558789934,0.61452506,29296.0,29295.0,0.03756125]
[1609558792636,0.61452506,29296.0,29295.0,0.00072206]
[1609558793236,1.61452506,29296.0,29295.0,0.00072206]
[1609558794540,1.61880149,29296.0,29295.0,0.00072206]
[1609558795842,1.63508343,29296.0,29295.0,0.00072206]
[1609558796041,1.63549908,29296.0,29295.0,0.00072206]
[1609558796242,2.22534273,29296.0,29295.0,0.00072206]
[1609558796442,2.32612708,29296.0,29279.0,1.0]
[1609558796642,1.71201768,29296.0,29279.0,1.0]
[1609558796841,3.885,29280.0,29279.0,1.0]
[1609558797041,3.885,29280.0,29279.0,0.7448]
[1609558797241,4.885,29280.0,29278.0,2.06968276]
[1609558797442,4.885,29280.0,29264.0,3.10452414]
[1609558797443,4.885,29280.0,29276.0,2.0690198]
[1609558797641,0.18043158,29277.0,29276.0,2.0690198]
[1609558797844,0.18043158,29277.0,29263.0,0.18043158]
[1609558798243,0.18043158,29277.0,29264.0,0.00036129]
[1609558798645,0.18467669,29277.0,29272.0,4.7729]
[1609558799046,0.18467669,29277.0,29273.0,0.00036127]
[1609558799248,0.18043158,29277.0,29273.0,0.00036127]
[1609558799649,0.18043158,29277.0,29276.0,0.18043158]
[1609558800051,0.18043158,29277.0,29276.0,4.12669281]
[1609558800751,0.18043158,29277.0,29276.0,0.18079281]
[1609558801954,0.18043158,29277.0,29276.0,0.1807928]
[1609558802150,0.18043158,29277.0,29276.0,0.18079281]
[1609558803850,4.90013158,29277.0,29276.0,0.18079281]
[1609558804151,4.90013158,29277.0,29276.0,0.18043158]
[1609558804753,4.90013158,29277.0,29265.0,4.7327]
[1609558805152,4.90013158,29277.0,29266.0,0.00036127]
[1609558805654,4.7197,29277.0,29269.0,0.18043158]
[1609558806055,4.7197,29277.0,29270.0,0.00036127]
[1609558807755,0.18043158,29271.0,29270.0,0.00036127]
[1609558807956,0.30112158,29271.0,29270.0,0.00036127]
[1609558808958,0.30112158,29271.0,29269.0,0.18043158]
[1609558811565,5.4927,29270.0,29269.0,0.18043158]
[1609558813068,0.30112158,29271.0,29269.0,0.18043158]
[1609558815069,0.30112158,29271.0,29269.0,1.18043158]
[1609558815268,0.12069,29271.0,29269.0,1.18043158]
[1609558815469,0.16461158,29282.0,29269.0,1.18043158]
[1609558815670,0.16461158,29282.0,29269.0,5.60813158]
[1609558815871,0.15023,29282.0,29276.0,0.18043158]
[1609558816068,0.00419625,29284.0,29276.0,0.18043158]
[1609558816874,0.2739,29285.0,29276.0,0.18043158]
[1609558817873,0.18043158,29277.0,29276.0,0.18043158]
[1609558818072,0.31947158,29277.0,29276.0,0.18043158]
[1609558818774,0.31947158,29277.0,29276.0,0.28153158]
[1609558819476,4.43767158,29277.0,29276.0,0.28153158]
[1609558819875,4.54007158,29277.0,29276.0,0.28153158]
[1609558820074,4.43767158,29277.0,29276.0,0.18043158]
[1609558821077,4.54157158,29277.0,29276.0,0.28363158]
[1609558821277,0.42337158,29277.0,29276.0,0.28363158]
[1609558821776,0.31947158,29277.0,29276.0,0.18043158]
[1609558822778,0.42207158,29277.0,29276.0,0.28363158]
[1609558823179,0.42207158,29277.0,29276.0,0.28399306]
[1609558823378,0.31947158,29277.0,29276.0,0.18079306]
[1609558824381,0.42037158,29277.0,29276.0,0.28399306]
[1609558824584,0.31947158,29277.0,29276.0,0.18079306]
[1609558825483,0.31947158,29277.0,29276.0,0.28419306]
[1609558825484,0.42317158,29277.0,29276.0,0.28419306]
[1609558825684,0.31947158,29277.0,29276.0,0.18079306]
[1609558825886,0.31947158,29277.0,29276.0,0.00036148]
[1609558826487,0.31947158,29277.0,29274.0,0.00036148]
[1609558826686,0.42047158,29277.0,29276.0,0.00036148]
[1609558826885,0.42047158,29277.0,29276.0,0.1014]
[1609558827286,0.42047158,29277.0,29276.0,0.10176148]
[1609558829188,0.31947158,29277.0,29276.0,0.00036148]
[1609558829589,0.31947158,29277.0,29274.0,0.00036148]
[1609558829788,0.31947158,29277.0,29276.0,0.00036148]
[1609558829789,5.88337158,29277.0,29276.0,0.00036148]
[1609558830089,5.88337158,29277.0,29275.0,0.00036148]
[1609558830290,5.98517158,29277.0,29276.0,0.00036148]
[1609558830490,5.98517158,29277.0,29276.0,0.10406148]
[1609558831890,5.88378746,29277.0,29276.0,0.00036148]
[1609558832391,5.88378746,29277.0,29265.0,0.03731253]
[1609558832692,0.00041588,29276.0,29265.0,0.03731253]
[1609558833794,0.1026,29275.0,29265.0,0.03731253]
[1609558833994,0.1026,29275.0,29269.0,0.18043158]
[1609558834497,5.70294,29277.0,29269.0,0.18043158]
[1609558834697,5.70294,29277.0,29270.0,0.03731239]
[1609558834896,0.0004159,29276.0,29270.0,0.0003615]
[1609558835096,0.0004159,29276.0,29269.0,0.18043158]
[1609558835097,0.0004159,29276.0,29271.0,0.00036152]
[1609558835296,0.0004159,29276.0,29272.0,0.1021]
[1609558835497,0.1031,29275.0,29272.0,0.1021]
[1609558835701,0.1031,29275.0,29273.0,0.00036152]
[1609558835899,0.18043158,29274.0,29273.0,0.00036152]
[1609558836397,0.18043158,29274.0,29270.0,0.03731497]
[1609558836697,0.18043158,29274.0,29273.0,0.00036152]
[1609558836898,0.28423158,29274.0,29273.0,0.1033]
[1609558837300,0.28423158,29274.0,29273.0,0.10366152]
[1609558837498,0.28423158,29274.0,29273.0,0.00036152]
[1609558837499,0.18043158,29274.0,29273.0,0.00036152]
[1609558837998,0.18043158,29274.0,29270.0,0.03731423]
[1609558838199,0.18043158,29274.0,29273.0,0.0003615]
[1609558838501,0.28273158,29274.0,29273.0,0.1034]
[1609558838900,0.28273158,29274.0,29273.0,0.1037615]
[1609558839101,0.28273158,29274.0,29273.0,1.1037615]
[1609558840002,0.18043158,29274.0,29273.0,1.0003615]
[1609558840203,0.18043158,29274.0,29273.0,1.18079308]
[1609558841103,0.28333158,29274.0,29273.0,1.32114705]
[1609558846513,0.18043158,29274.0,29273.0,0.21774705]
[1609558847613,0.28373158,29274.0,29273.0,0.31884705]
[1609558848916,0.28373158,29274.0,29273.0,0.21774705]
[1609558848917,0.18043158,29274.0,29273.0,0.21774705]
[1609558849616,0.18043158,29274.0,29273.0,1.21774705]
[1609558850720,0.18043158,29274.0,29273.0,0.21774705]
[1609558851619,0.18043158,29274.0,29273.0,1.21774705]
[1609558855422,0.17835507,29274.0,29273.0,0.21774705]
[1609558855621,5.11185507,29274.0,29273.0,0.21774705]
[1609558855821,5.11185507,29274.0,29273.0,0.03731547]
[1609558856221,5.11185507,29274.0,29265.0,0.10870391]
[1609558856424,5.11185507,29274.0,29269.0,0.18043158]
[1609558856622,5.11185507,29274.0,29273.0,0.03731148]
[1609558856822,5.11185507,29274.0,29270.0,0.0373118]
[1609558857022,5.11185507,29274.0,29273.0,0.03731251]
[1609558857323,5.11185507,29274.0,29271.0,0.03731185]
[1609558857522,5.11185507,29274.0,29273.0,0.03731214]
[1609558857723,0.17835507,29274.0,29273.0,0.03731214]
[1609558857922,0.17835507,29274.0,29270.0,0.03731196]
[1609558858123,0.17835507,29274.0,29273.0,0.03731192]
[1609558858322,0.17835507,29274.0,29271.0,0.03731248]
[1609558858723,0.17835507,29274.0,29273.0,0.0373125]
[1609558858924,0.17835507,29274.0,29272.0,0.0373125]
[1609558859124,0.17835507,29274.0,29273.0,0.03731203]
[1609558859722,0.17835507,29274.0,29270.0,0.03731212]
[1609558859923,4.431,29273.0,29269.0,0.18043158]
[1609558860122,4.431,29273.0,29271.0,0.03731202]
[1609558860423,4.431,29273.0,29270.0,0.03731215]
[1609558860824,4.431,29273.0,29272.0,0.03731245]
[1609558861024,4.431,29273.0,29271.0,0.03731247]
[1609558861225,4.431,29273.0,29272.0,0.03731274]
[1609558861825,4.431,29273.0,29264.0,0.10870823]
[1609558862025,4.431,29273.0,29272.0,0.0373134]
[1609558862226,4.431,29273.0,29272.0,0.0003615]
[1609558862426,4.61143158,29273.0,29269.0,0.18043158]
[1609558862627,4.61143158,29273.0,29272.0,0.0003615]
[1609558862827,4.61143158,29273.0,29270.0,0.03731427]
[1609558863126,4.61143158,29273.0,29272.0,0.00036152]
[1609558863327,4.61143158,29273.0,29271.0,0.00036152]
[1609558863728,4.61143158,29273.0,29272.0,0.00036152]
[1609558864329,4.61143158,29273.0,29270.0,0.03731427]
[1609558864629,4.61143158,29273.0,29271.0,0.00036152]
[1609558865029,4.61143158,29273.0,29272.0,0.00036152]
[1609558865230,4.61143158,29273.0,29271.0,0.00036152]
[1609558865431,4.61143158,29273.0,29272.0,0.037315]
[1609558865631,0.18043158,29273.0,29272.0,0.037315]
[1609558865832,0.18043158,29273.0,29272.0,0.00036152]
[1609558866033,0.18043158,29273.0,29272.0,0.03731543]
[1609558866233,0.18043158,29273.0,29270.0,0.03731576]
[1609558866534,0.18043158,29273.0,29272.0,0.00036152]
[1609558866733,0.18043158,29273.0,29271.0,0.03731599]
[1609558867032,0.18043158,29273.0,29272.0,0.00036152]
[1609558867232,0.18043158,29273.0,29272.0,0.03731592]
[1609558867634,0.18043158,29273.0,29270.0,0.03731589]
[1609558867835,0.18043158,29273.0,29272.0,0.03731622]
[1609558868035,0.18043158,29273.0,29271.0,0.03731608]
[1609558868435,0.18043158,29273.0,29272.0,0.18043158]
[1609558868735,0.18043158,29273.0,29272.0,5.24664785]
[1609558868937,0.18043158,29273.0,29272.0,4.24664785]
[1609558869637,0.18043158,29273.0,29272.0,5.24664785]
[1609558870538,0.18043158,29273.0,29272.0,1.21774785]
[1609558870741,0.18043158,29273.0,29272.0,0.21774785]
[1609558877552,0.18043158,29273.0,29272.0,1.21774785]
[1609558878951,0.18043158,29273.0,29272.0,0.21774785]
[1609558883459,0.18043158,29273.0,29272.0,1.21774785]
[1609558887164,0.18043158,29273.0,29272.0,0.21774785]
[1609558888167,0.18043158,29273.0,29272.0,1.21774785]
[1609558891074,0.18043158,29273.0,29272.0,1.31924785]
[1609558891275,0.18043158,29273.0,29272.0,1.21774785]
[1609558892679,0.18043158,29273.0,29272.0,2.00024785]
[1609558892880,0.00426005,29278.0,29272.0,2.00024785]
[1609558893080,0.00426005,29278.0,29272.0,1.21774785]
[1609558893280,0.00426005,29278.0,29274.0,4.5343]
[1609558893479,0.00426005,29278.0,29275.0,1.0]
[1609558893679,0.00426005,29278.0,29275.0,1.03666134]
[1609558893980,0.01461383,29280.0,29276.0,0.03666123]
[1609558894580,0.00426237,29280.0,29276.0,0.03666123]
[1609558894781,0.00426237,29280.0,29279.0,0.18043158]
[1609558895280,0.00426237,29280.0,29279.0,0.21709363]
[1609558895482,0.00426237,29280.0,29279.0,0.18079164]
[1609558896282,0.00426237,29280.0,29279.0,0.77549347]
[1609558896882,0.00426237,29280.0,29279.0,1.77549347]
[1609558898985,0.00426237,29280.0,29279.0,0.77549347]
[1609558899185,0.00426237,29280.0,29279.0,1.21709347]
[1609558899387,0.00426237,29280.0,29279.0,5.29629347]
[1609558899585,0.00426237,29280.0,29279.0,1.21709347]
[1609558900687,0.00426237,29280.0,29279.0,0.21709347]
[1609558902688,0.00426237,29280.0,29279.0,1.21709347]
[1609558903190,0.18043158,29284.0,29279.0,1.21709347]
[1609558903691,0.18043158,29284.0,29280.0,0.03664888]
[1609558904796,0.18043158,29284.0,29283.0,0.18043158]
[1609558905393,0.18043158,29284.0,29283.0,0.18079153]
[1609558922915,0.18043158,29284.0,29283.0,0.21708216]
[1609558927326,4.32723158,29284.0,29283.0,0.03665058]
[1609558927531,5.32723158,29284.0,29283.0,0.03665058]
[1609558927728,5.32723158,29284.0,29273.0,0.10720073]
[1609558927923,5.32723158,29284.0,29283.0,0.00036002]
[1609558928121,5.32723158,29284.0,29274.0,0.03665856]
[1609558928525,5.35849479,29284.0,29283.0,0.00036004]
[1609558928723,5.35807893,29284.0,29275.0,0.03666127]
[1609558928924,5.3584948,29284.0,29283.0,0.00036006]
[1609558929125,1.2116948,29284.0,29283.0,0.00036006]
[1609558929327,1.21127893,29284.0,29277.0,4.7303]
[1609558929525,1.21169481,29284.0,29283.0,0.00036006]
[1609558929725,1.21127893,29284.0,29278.0,0.00036006]
[1609558930025,1.21127893,29284.0,29283.0,0.00036006]
[1609558930225,1.21127893,29284.0,29279.0,0.00036006]
[1609558930625,1.21127893,29284.0,29278.0,0.00036006]
[1609558930825,1.21127893,29284.0,29280.0,0.00036006]
[1609558931026,1.21127893,29284.0,29279.0,0.00036006]
[1609558931226,0.18043158,29281.0,29279.0,0.00036006]
[1609558931425,0.18043158,29281.0,29278.0,0.18043158]
[1609558931625,0.18043158,29281.0,29280.0,0.00036004]
[1609558931828,0.18043158,29281.0,29278.0,0.18043158]
[1609558931829,0.18043158,29281.0,29279.0,0.00036004]
[1609558932127,0.18043158,29281.0,29280.0,0.00036004]
[1609558932627,0.18043158,29281.0,29279.0,0.00036004]
[1609558932928,0.18043158,29281.0,29280.0,0.00036004]
[1609558933428,0.18043158,29281.0,29279.0,0.00036004]
[1609558933830,0.18043158,29281.0,29280.0,0.00036004]
[1609558934332,0.18043158,29281.0,29279.0,0.00036004]
[1609558934629,0.18043158,29281.0,29280.0,0.00036004]
[1609558935031,0.18043158,29281.0,29280.0,0.5652]
[1609558935229,0.18043158,29281.0,29280.0,0.56556002]
[1609558936130,0.00425741,29284.0,29280.0,0.56556002]
[1609558936331,0.00425741,29284.0,29280.0,0.00036001]
[1609558936532,0.00425741,29284.0,29283.0,5.3524]
[1609558936935,0.00425629,29286.0,29283.0,5.35275998]
[1609558937135,0.00425629,29286.0,29285.0,0.18043158]
[1609558937733,0.00425629,29286.0,29285.0,0.18079152]
[1609558939336,0.211239,29287.0,29285.0,0.18079152]
[1609558939337,0.18043158,29287.0,29285.0,0.18079152]
[1609558939736,0.18043158,29287.0,29286.0,0.00036035]
[1609558940840,0.43928503,29292.0,29286.0,0.00036035]
[1609558941039,0.61971661,29292.0,29291.0,4.40653158]
[1609558941240,0.73098429,29295.0,29291.0,4.40653158]
[1609558941439,0.73098429,29295.0,29291.0,4.40689191]
[1609558941641,0.73098429,29295.0,29292.0,0.0003603]
[1609558943041,0.18043158,29295.0,29294.0,0.18043158]
[1609558943542,0.18043158,29295.0,29294.0,0.18079185]
[1609558946844,0.7305963,29302.0,29294.0,0.18079185]
[1609558947145,0.7305963,29302.0,29299.0,0.18043158]
[1609558949147,0.18043158,29301.0,29299.0,0.18043158]
[1609558949348,0.18043158,29301.0,29300.0,4.8675]
[1609558951048,0.73112322,29305.0,29300.0,4.8675]
[1609558951651,0.73133886,29306.0,29300.0,4.8675]
[1609558952752,0.47473158,29307.0,29300.0,4.8675]
[1609558953152,0.47473158,29307.0,29306.0,0.18043158]
[1609558954657,5.40913158,29307.0,29306.0,0.18043158]
[1609558955256,5.40913158,29307.0,29303.0,0.18043158]
[1609558955456,5.40913158,29307.0,29285.0,0.41503502]
[1609558955457,1.47473158,29307.0,29285.0,0.41503502]
[1609558955656,5.6336,29298.0,29285.0,0.41503502]
[1609558955857,5.6336,29298.0,29286.0,0.00036027]
[1609558957061,5.6336,29298.0,29290.0,0.18043158]
[1609558957467,1.0,29293.0,29291.0,0.00036032]
[1609558958163,1.0,29293.0,29290.0,0.18043158]
[1609558958462,1.0,29293.0,29291.0,0.00036033]
[1609558959263,0.18043158,29292.0,29291.0,0.00036033]
[1609558963372,5.00213158,29292.0,29291.0,0.00036033]
[1609558963571,5.00213158,29292.0,29286.0,0.00036033]
[1609558963772,5.00213158,29292.0,29291.0,0.00036033]
[1609558963971,5.00213158,29292.0,29287.0,0.00036038]
[1609558964372,5.00213158,29292.0,29285.0,0.18043158]
[1609558964573,5.00213158,29292.0,29288.0,0.00036039]
[1609558964774,5.00213158,29292.0,29286.0,0.00036039]
[1609558965075,5.00213158,29292.0,29289.0,0.00036039]
[1609558965274,4.8217,29292.0,29287.0,0.00036039]
[1609558965474,1.0,29290.0,29287.0,0.00036039]
[1609558965674,1.0,29290.0,29282.0,0.18043158]
[1609558965875,1.0,29290.0,29288.0,0.00036038]
[1609558966075,1.0,29290.0,29283.0,0.00036038]
[1609558966376,1.0,29290.0,29289.0,0.00036038]
[1609558966577,1.0,29290.0,29284.0,0.00036038]
[1609558966876,1.0,29290.0,29283.0,0.00036038]
[1609558967177,0.18043158,29284.0,29282.0,0.18043158]
[1609558967778,0.18043158,29284.0,29283.0,0.00036037]
[1609558970680,0.18043158,29284.0,29283.0,0.00036038]
[1609558972283,0.18043158,29284.0,29283.0,0.00036036]
[1609558972484,0.18043158,29284.0,29283.0,0.00036037]
[1609558976291,0.18043158,29284.0,29283.0,4.57496037]
[1609558976490,0.18043158,29284.0,29283.0,5.57496037]
[1609558978091,0.17835587,29284.0,29283.0,5.57496037]
[1609558978293,0.90566308,29296.0,29283.0,5.57496037]
[1609558978894,0.90566308,29296.0,29284.0,0.0003603]
[1609558979292,0.90566308,29296.0,29293.0,0.18043158]
[1609558980997,0.2964,29296.0,29293.0,0.18043158]
[1609558981396,0.18043158,29294.0,29293.0,0.18043158]
[1609558981894,0.18043158,29294.0,29293.0,0.1807919]
[1609558987106,0.18043158,29294.0,29293.0,1.1807919]
[1609558988307,0.18043158,29294.0,29293.0,0.1807919]
[1609558988506,0.18043158,29294.0,29293.0,1.1807919]
[1609558989307,0.18043158,29294.0,29293.0,0.1807919]
[1609558989507,5.58233158,29294.0,29293.0,0.00036032]
[1609558989908,5.58233158,29294.0,29285.0,0.03682916]
[1609558990110,5.58233158,29294.0,29293.0,0.00036028]
[1609558990510,0.18043158,29294.0,29286.0,0.00036028]
[1609558990707,0.18043158,29294.0,29293.0,0.00036031]
[1609558990908,0.18043158,29294.0,29290.0,4.3569]
[1609558991307,0.2964,29296.0,29293.0,0.00036031]
[1609558991508,0.2964,29296.0,29291.0,0.00036031]
[1609558991708,0.0004157,29295.0,29294.0,0.00036033]
[1609558991907,0.0004157,29295.0,29292.0,0.00036033]
[1609558992208,0.2964,29296.0,29291.0,0.00036033]
[1609558992509,0.2964,29296.0,29293.0,0.00036033]
[1609558992711,0.00041569,29295.0,29292.0,0.00036033]
[1609558993011,0.00041569,29295.0,29291.0,0.00036033]
[1609558993314,0.00041569,29295.0,29293.0,0.00036033]
[1609558993515,0.18043158,29294.0,29292.0,0.00036033]
[1609558993915,0.18043158,29294.0,29291.0,0.00036033]
[1609558994114,0.18043158,29294.0,29293.0,0.00036031]
[1609558994315,0.18043158,29294.0,29292.0,0.00036031]
[1609558994615,0.18043158,29294.0,29293.0,0.00036031]
[1609558995122,0.18084728,29294.0,29291.0,0.00036031]
[1609558995420,0.18084728,29294.0,29293.0,0.00036031]
[1609558995619,0.18043158,29294.0,29292.0,0.00036031]
[1609558996019,0.18043158,29294.0,29291.0,0.00036031]
[1609558996221,0.18043158,29294.0,29293.0,0.00036031]
[1609558996422,0.18043158,29294.0,29293.0,0.7939]
[1609558996722,0.18043158,29294.0,29293.0,0.79426031]
[1609558997126,0.18043158,29294.0,29293.0,0.00036031]
[1609558997324,0.18084729,29294.0,29293.0,0.00036031]
[1609558997524,0.18084729,29294.0,29289.0,0.00036034]
[1609558997725,1.18084729,29294.0,29293.0,0.00036034]
[1609558998122,1.18084729,29294.0,29286.0,0.03683358]
[1609558998323,1.18084729,29294.0,29293.0,0.00036034]
[1609558998523,1.18084729,29294.0,29285.0,5.2576]
[1609558998524,1.18043158,29294.0,29287.0,0.00036034]
[1609558998922,1.18084729,29294.0,29293.0,0.00036034]
[1609558999122,1.18043158,29294.0,29288.0,0.00036034]
[1609558999322,1.18043158,29294.0,29293.0,0.00036034]
[1609558999522,0.18043158,29294.0,29293.0,0.00036034]
[1609558999722,0.18043158,29294.0,29289.0,0.00036034]
[1609558999923,0.79171556,29294.0,29293.0,0.00036034]
[1609559000124,0.79171556,29294.0,29290.0,0.00036034]
[1609559000428,0.79171556,29294.0,29293.0,0.00036034]
[1609559000626,0.79171556,29294.0,29291.0,0.00036034]
[1609559000927,0.79171556,29294.0,29286.0,0.03683597]
[1609559001225,0.79171556,29294.0,29292.0,0.00036034]
[1609559001425,0.79171556,29294.0,29287.0,0.00036034]
[1609559001625,0.18043158,29288.0,29287.0,0.00036034]
[1609559001826,0.18043158,29288.0,29286.0,0.03683597]
[1609559002125,0.18043158,29288.0,29287.0,0.00036034]
[1609559002528,0.18043158,29288.0,29286.0,0.03683597]
[1609559023066,0.18043158,29288.0,29287.0,0.03]
[1609559023667,0.18043158,29288.0,29287.0,0.06683476]
[1609559040387,0.18043158,29288.0,29287.0,0.03036034]
[1609559040586,5.26473158,29288.0,29287.0,0.03036034]
[1609559040785,5.26514735,29288.0,29287.0,0.03036034]
[1609559041586,6.26514735,29288.0,29287.0,0.03036034]
[1609559043790,9.01063726,29288.0,29287.0,0.03036034]
[1609559046594,8.11181522,29288.0,29287.0,0.03036034]
[1609559047797,8.11139945,29288.0,29287.0,0.03036034]
[1609559047996,3.02709945,29288.0,29287.0,0.03036034]
[1609559048398,8.10689945,29288.0,29287.0,0.03036034]
[1609559049496,7.10689945,29288.0,29287.0,0.03036034]
[1609559050197,7.10689945,29288.0,29287.0,0.03]
[1609559051400,8.00528475,29288.0,29287.0,0.03]
[1609559051599,9.00528475,29288.0,29287.0,0.03]
[1609559052698,3.92548475,29288.0,29287.0,0.03]
[1609559053299,3.02709945,29288.0,29287.0,0.03]
[1609559055200,6.98939945,29288.0,29287.0,0.03]
[1609559056510,6.9898153,29288.0,29287.0,0.03036046]
[1609559057508,5.9898153,29288.0,29287.0,0.03036046]
[1609559057708,7.88826716,29288.0,29287.0,0.03036046]
[1609559058609,6.9898153,29288.0,29287.0,0.03036046]
[1609559067820,3.0275153,29288.0,29287.0,0.03036046]
[1609559068918,3.7613153,29288.0,29287.0,0.03036046]
[1609559071524,2.7613153,29288.0,29287.0,0.03036046]
[1609559073528,3.7613153,29288.0,29287.0,0.03036046]
[1609559075629,2.7613153,29288.0,29287.0,0.03036046]
[1609559079534,3.7613153,29288.0,29287.0,0.03036046]
[1609559081538,2.7613153,29288.0,29287.0,0.03036046]
[1609559081738,3.0275153,29288.0,29287.0,0.03036046]
[1609559082438,3.8113153,29288.0,29287.0,0.03036046]
[1609559087549,4.71021597,29288.0,29287.0,0.03036046]
[1609559089549,3.71021597,29288.0,29287.0,0.03036046]
[1609559095255,2.92641597,29288.0,29287.0,0.03036046]
[1609559102570,2.74598439,29288.0,29287.0,0.03036046]
[1609559103070,2.92641597,29288.0,29287.0,0.03036046]
[1609559106278,2.0275153,29288.0,29287.0,0.03036046]
[1609559108580,2.02709945,29288.0,29287.0,0.03036046]
[1609559112282,1.52876676,29288.0,29287.0,0.03036046]
[1609559113286,0.79332977,29288.0,29287.0,0.03036046]
[1609559113985,0.79332977,29288.0,29287.0,0.78466046]
[1609559114185,0.81403542,29288.0,29287.0,1.78466046]
[1609559115185,0.63360384,29288.0,29287.0,1.96509204]
[1609559115387,0.63360384,29288.0,29287.0,2.00168634]
[1609559116687,0.15053,29291.0,29287.0,2.00168634]
[1609559117087,0.63659219,29292.0,29287.0,2.00168634]
[1609559117288,0.63659219,29292.0,29291.0,0.18043158]
[1609559117487,0.63659219,29292.0,29291.0,1.74583158]
[1609559117689,0.18043158,29294.0,29291.0,1.78278342]
[1609559118188,0.18043158,29294.0,29292.0,0.0003606]
[1609559119491,0.18043158,29294.0,29292.0,0.03695043]
[1609559119893,0.18043158,29294.0,29292.0,0.0003606]
[1609559120092,0.18043158,29294.0,29293.0,0.00036054]
[1609559120592,0.18043158,29294.0,29292.0,0.00036054]
[1609559120792,0.18043158,29294.0,29293.0,0.00036054]
[1609559121094,0.18043158,29294.0,29292.0,0.00036054]
[1609559121493,0.18043158,29294.0,29293.0,5.02836054]
[1609559121693,0.18043158,29294.0,29293.0,6.02836054]
[1609559140823,0.18043158,29294.0,29293.0,6.06494079]
[1609559141325,0.18043158,29294.0,29293.0,6.02836054]
[1609559141825,0.18043158,29294.0,29293.0,6.06494082]
[1609559142425,0.18043158,29294.0,29293.0,6.16624082]
[1609559142825,0.18043158,29294.0,29293.0,6.06494082]
[1609559145026,0.18043158,29294.0,29293.0,1.03694082]
[1609559145225,0.18043158,29294.0,29293.0,0.03694082]
[1609559157842,0.18043158,29294.0,29292.0,0.03694306]
[1609559165156,0.15771,29297.0,29292.0,0.03694306]
[1609559165756,0.15771,29297.0,29294.0,0.18043158]
[1609559165957,0.01045191,29298.0,29294.0,0.18043158]
[1609559166256,0.00041567,29297.0,29295.0,0.03694319]
[1609559166457,0.00041567,29297.0,29295.0,0.59284319]
[1609559166657,0.10529567,29297.0,29295.0,0.59284319]
[1609559166857,0.11574818,29297.0,29296.0,0.00036054]
[1609559167058,0.11533251,29297.0,29296.0,0.00036054]
[1609559167357,0.11574818,29297.0,29296.0,0.00036054]
[1609559167760,0.10529567,29297.0,29296.0,0.00036054]
[1609559167958,0.28572725,29297.0,29296.0,0.00036054]
[1609559169461,0.28572725,29297.0,29296.0,0.03694413]
[1609559171567,0.28531158,29297.0,29296.0,0.03694413]
[1609559172767,0.29577014,29297.0,29296.0,0.03694413]
[1609559174171,0.31651814,29297.0,29296.0,0.03694413]
[1609559175974,0.90240915,29297.0,29296.0,0.03694413]
[1609559176576,0.90282481,29297.0,29296.0,0.03694413]
[1609559181282,0.90240915,29297.0,29296.0,0.03694413]
[1609559183986,0.90282481,29297.0,29296.0,0.03694413]
[1609559184387,0.90240915,29297.0,29296.0,0.03694413]
[1609559190693,0.90282481,29297.0,29296.0,0.03694413]
[1609559191493,0.90240915,29297.0,29296.0,0.03694413]
[1609559191891,0.90282481,29297.0,29296.0,0.03694413]
[1609559193793,0.90240915,29297.0,29296.0,0.03694413]
[1609559196997,0.90282481,29297.0,29296.0,0.03694413]
[1609559197996,0.90240915,29297.0,29296.0,0.03694413]
[1609559198899,0.90282481,29297.0,29296.0,0.03694413]
[1609559201901,0.90282481,29297.0,29296.0,4.93874413]
[1609559202103,0.90240915,29297.0,29296.0,4.9018]
[1609559202301,0.90240915,29297.0,29296.0,4.93887837]
[1609559204303,0.90240915,29297.0,29296.0,5.93887837]
[1609559204705,0.75570757,29297.0,29296.0,5.93887837]
[1609559205404,0.72840757,29297.0,29296.0,5.93887837]
[1609559205605,0.14293087,29297.0,29296.0,5.93887837]
[1609559205804,0.13733087,29297.0,29296.0,5.93887837]
[1609559206006,0.00432087,29297.0,29296.0,5.93887837]
[1609559206405,0.00432087,29297.0,29296.0,6.00993665]
[1609559206606,0.00432588,29303.0,29296.0,6.00993665]
[1609559207007,0.00432588,29303.0,29302.0,0.18043158]
[1609559207209,0.00432588,29303.0,29302.0,1.75843158]
[1609559207407,0.00432588,29303.0,29302.0,1.79549856]
[1609559208109,0.00432588,29303.0,29302.0,1.75879231]
[1609559210215,0.00432789,29306.0,29302.0,1.75879231]
[1609559210412,0.00432789,29306.0,29302.0,1.18079231]
[1609559210813,0.00432789,29306.0,29305.0,5.3778]
[1609559211013,0.00432789,29306.0,29305.0,6.55823158]
[1609559211313,0.00432789,29306.0,29305.0,6.55859229]
[1609559212014,0.00432789,29306.0,29305.0,5.55859229]
[1609559213018,0.14239,29308.0,29305.0,5.55859229]
[1609559213315,0.01483043,29309.0,29305.0,5.55859229]
[1609559213516,0.00432235,29310.0,29306.0,0.00036071]
[1609559215117,0.00432235,29310.0,29309.0,0.18043158]
[1609559215317,0.00432235,29310.0,29309.0,0.73383158]
[1609559215519,0.00432235,29310.0,29309.0,0.73419229]
[1609559217118,0.18475393,29310.0,29309.0,0.73419229]
[1609559217619,0.18043158,29310.0,29309.0,0.73419229]
[1609559220426,0.32674158,29310.0,29309.0,0.73419229]
[1609559225131,0.14631,29310.0,29309.0,0.73419229]
[1609559225833,0.19522904,29313.0,29309.0,0.73419229]
[1609559226235,0.19522904,29313.0,29310.0,0.00036071]
[1609559227132,0.19522904,29313.0,29312.0,0.18043158]
[1609559227332,0.19522904,29313.0,29312.0,0.90233158]
[1609559229433,0.18474752,29313.0,29312.0,0.90233158]
[1609559230033,0.18474752,29313.0,29312.0,0.90269229]
[1609559230234,0.18043158,29313.0,29312.0,0.90269229]
[1609559232237,0.34910158,29313.0,29312.0,0.90269229]
[1609559233138,0.36389444,29313.0,29312.0,0.90269229]
[1609559234341,0.34910158,29313.0,29312.0,0.90269229]
[1609559235140,0.34910158,29313.0,29312.0,1.90269229]
[1609559235341,0.16867,29313.0,29312.0,1.90269229]
[1609559235641,0.16867,29313.0,29312.0,0.90269229]
[1609559237545,0.13077,29313.0,29312.0,0.90269229]
[1609559238847,0.13077,29313.0,29312.0,1.90269229]
[1609559239850,0.13077,29313.0,29312.0,0.90269229]